[Event "Titled Tuesday Blitz December 7 2021"]
[White "Maksimovic, Bojan"]
[Black "Rangel, Daniel"]
[WhiteFideId "14408120"]
[BlackFideId "2124475"]
[WhiteElo "2458"]
[BlackElo "2187"]
[Result "0-1"]
[Round "07"]
[TimeControl "180+1"]
[Date "2021.12.07"]
[WhiteClock "0:00:27"]
[BlackClock "0:00:43"]

1. e4 {[%clk 0:02:55]}  c6 {[%clk 0:02:58]} 2. d4 {[%clk 0:02:54]}  d5 {[%clk 0:02:59]} 3. Nc3 {[%clk 0:02:55]}  dxe4 {[%clk 0:02:59]} 4. Nxe4 {[%clk 0:02:56]}  Nf6 {[%clk 0:02:59]} 5. Nxf6+ {[%clk 0:02:56]}  exf6 {[%clk 0:03:00]} 6. c3 {[%clk 0:02:56]}  Bd6 {[%clk 0:03:00]} 7. Bd3 {[%clk 0:02:57]}  O-O {[%clk 0:03:01]} 8. Qc2 {[%clk 0:02:56]}  Re8+ {[%clk 0:03:01]} 9. Ne2 {[%clk 0:02:57]}  h5 {[%clk 0:03:02]} 10. O-O {[%clk 0:02:57]}  h4 {[%clk 0:03:01]} 11. h3 {[%clk 0:02:53]}  Nd7 {[%clk 0:03:00]} 12. Bd2 {[%clk 0:02:24]}  Nf8 {[%clk 0:02:41]} 13. Rae1 {[%clk 0:02:24]}  Be6 {[%clk 0:02:34]} 14. f4 {[%clk 0:02:23]}  Rc8 {[%clk 0:02:20]} 15. f5 {[%clk 0:02:17]}  Bd7 {[%clk 0:02:20]} 16. Qd1 {[%clk 0:01:56]}  c5 {[%clk 0:02:03]} 17. d5 {[%clk 0:01:56]}  b5 {[%clk 0:01:57]} 18. Nf4 {[%clk 0:01:53]}  c4 {[%clk 0:01:52]} 19. Be4 {[%clk 0:01:42]}  Qb6+ {[%clk 0:01:40]} 20. Kh1 {[%clk 0:01:32]}  Re7 {[%clk 0:01:28]} 21. Qg4 {[%clk 0:01:27]}  Bxf4 {[%clk 0:00:54]} 22. Bxf4 {[%clk 0:01:26]}  Rce8 {[%clk 0:00:51]} 23. Bh6 {[%clk 0:01:25]}  g6 {[%clk 0:00:46]} 24. Qxh4 {[%clk 0:01:16]}  Bxf5 {[%clk 0:00:46]} 25. Bxf5 {[%clk 0:01:11]}  Rxe1 {[%clk 0:00:44]} 26. Rxe1 {[%clk 0:01:11]}  Rxe1+ {[%clk 0:00:44]} 27. Qxe1 {[%clk 0:01:11]}  gxf5 {[%clk 0:00:44]} 28. Qe8 {[%clk 0:00:52]}  Qd6 {[%clk 0:00:43]} 29. Qxf8+ {[%clk 0:00:52]}  Qxf8 {[%clk 0:00:44]} 30. Bxf8 {[%clk 0:00:53]}  Kxf8 {[%clk 0:00:45]} 31. h4 {[%clk 0:00:53]}  a5 {[%clk 0:00:45]} 32. h5 {[%clk 0:00:54]}  b4 {[%clk 0:00:45]} 33. d6 {[%clk 0:00:53]}  a4 {[%clk 0:00:44]} 34. cxb4 {[%clk 0:00:53]}  a3 {[%clk 0:00:44]} 35. bxa3 {[%clk 0:00:29]}  c3 {[%clk 0:00:44]} 36. d7 {[%clk 0:00:27]}  Ke7 {[%clk 0:00:43]} 0-1


[Site "https://www.chess.com"]

[Event "Titled Tuesday Blitz December 7 2021"]
[White "Malka, Samuel"]
[Black "Tanenbaum, Zachary"]
[WhiteFideId "20643675"]
[BlackFideId "2060850"]
[WhiteElo "2457"]
[BlackElo "2168"]
[Result "0-1"]
[Round "07"]
[TimeControl "180+1"]
[Date "2021.12.07"]
[WhiteClock "0:00:07"]
[BlackClock "0:00:07"]

1. d4 {[%clk 0:02:20]}  d5 {[%clk 0:02:59]} 2. c4 {[%clk 0:02:20]}  dxc4 {[%clk 0:03:00]} 3. e4 {[%clk 0:02:20]}  c5 {[%clk 0:03:00]} 4. d5 {[%clk 0:02:19]}  e6 {[%clk 0:03:00]} 5. Nc3 {[%clk 0:02:18]}  exd5 {[%clk 0:03:00]} 6. exd5 {[%clk 0:02:19]}  Bd6 {[%clk 0:02:58]} 7. Bxc4 {[%clk 0:02:20]}  a6 {[%clk 0:02:58]} 8. a4 {[%clk 0:02:20]}  Nf6 {[%clk 0:02:58]} 9. Nge2 {[%clk 0:02:20]}  O-O {[%clk 0:02:59]} 10. O-O {[%clk 0:02:21]}  Bf5 {[%clk 0:02:59]} 11. Bg5 {[%clk 0:02:19]}  h6 {[%clk 0:02:58]} 12. Bh4 {[%clk 0:02:19]}  Nbd7 {[%clk 0:02:57]} 13. Qd2 {[%clk 0:02:18]}  Ne4 {[%clk 0:02:39]} 14. Nxe4 {[%clk 0:02:10]}  Bxh2+ {[%clk 0:02:39]} 15. Kxh2 {[%clk 0:02:06]}  Qxh4+ {[%clk 0:02:40]} 16. Kg1 {[%clk 0:02:06]}  Bxe4 {[%clk 0:02:34]} 17. Qf4 {[%clk 0:01:47]}  Qxf4 {[%clk 0:02:30]} 18. Nxf4 {[%clk 0:01:47]}  Nb6 {[%clk 0:02:21]} 19. b3 {[%clk 0:01:42]}  Rad8 {[%clk 0:02:06]} 20. a5 {[%clk 0:01:36]}  Nxd5 {[%clk 0:02:05]} 21. Rfe1 {[%clk 0:01:31]}  Nxf4 {[%clk 0:01:30]} 22. Rxe4 {[%clk 0:01:30]}  Ng6 {[%clk 0:01:30]} 23. Rae1 {[%clk 0:01:23]}  Rd2 {[%clk 0:01:16]} 24. f4 {[%clk 0:01:17]}  Nh4 {[%clk 0:00:45]} 25. R1e2 {[%clk 0:01:16]}  Rd1+ {[%clk 0:00:36]} 26. Kf2 {[%clk 0:01:16]}  Nf5 {[%clk 0:00:34]} 27. Re5 {[%clk 0:01:10]}  g6 {[%clk 0:00:33]} 28. Rxc5 {[%clk 0:01:06]}  h5 {[%clk 0:00:32]} 29. Rc7 {[%clk 0:01:03]}  Ra1 {[%clk 0:00:23]} 30. b4 {[%clk 0:00:58]}  Nd6 {[%clk 0:00:17]} 31. Bd5 {[%clk 0:00:52]}  Rb1 {[%clk 0:00:17]} 32. Bxb7 {[%clk 0:00:48]}  Rxb4 {[%clk 0:00:17]} 33. Bxa6 {[%clk 0:00:48]}  Rxf4+ {[%clk 0:00:17]} 34. Kg3 {[%clk 0:00:46]}  Ra4 {[%clk 0:00:16]} 35. Re5 {[%clk 0:00:42]}  Ra8 {[%clk 0:00:15]} 36. Rc6 {[%clk 0:00:41]}  Nf5+ {[%clk 0:00:15]} 37. Kf2 {[%clk 0:00:36]}  Kg7 {[%clk 0:00:16]} 38. Bc4 {[%clk 0:00:35]}  R4xa5 {[%clk 0:00:15]} 39. Rxa5 {[%clk 0:00:35]}  Rxa5 {[%clk 0:00:15]} 40. Rc7 {[%clk 0:00:36]}  Nd6 {[%clk 0:00:15]} 41. Be2 {[%clk 0:00:35]}  Rf5+ {[%clk 0:00:14]} 42. Bf3 {[%clk 0:00:34]}  g5 {[%clk 0:00:14]} 43. Kg3 {[%clk 0:00:33]}  Kg6 {[%clk 0:00:11]} 44. Rc6 {[%clk 0:00:30]}  Rf6 {[%clk 0:00:12]} 45. Rc5 {[%clk 0:00:26]}  h4+ {[%clk 0:00:10]} 46. Kh3 {[%clk 0:00:24]}  Kg7 {[%clk 0:00:11]} 47. Bg4 {[%clk 0:00:23]}  Kg6 {[%clk 0:00:10]} 48. Bf3 {[%clk 0:00:23]}  Ne8 {[%clk 0:00:07]} 49. Be4+ {[%clk 0:00:23]}  Kh6 {[%clk 0:00:07]} 50. Bc2 {[%clk 0:00:20]}  Ng7 {[%clk 0:00:07]} 51. Rc8 {[%clk 0:00:20]}  Ne6 {[%clk 0:00:07]} 52. Rh8+ {[%clk 0:00:20]}  Kg7 {[%clk 0:00:08]} 53. Rh7+ {[%clk 0:00:21]}  Kf8 {[%clk 0:00:08]} 54. Rh8+ {[%clk 0:00:21]}  Ke7 {[%clk 0:00:09]} 55. Ra8 {[%clk 0:00:19]}  Rf4 {[%clk 0:00:07]} 56. Ra5 {[%clk 0:00:18]}  Kf6 {[%clk 0:00:08]} 57. g3 {[%clk 0:00:18]}  hxg3 {[%clk 0:00:07]} 58. Kxg3 {[%clk 0:00:19]}  Rd4 {[%clk 0:00:07]} 59. Rf5+ {[%clk 0:00:19]}  Ke7 {[%clk 0:00:07]} 60. Bb3 {[%clk 0:00:19]}  f6 {[%clk 0:00:07]} 61. Rf3 {[%clk 0:00:18]}  Nf4 {[%clk 0:00:07]} 62. Re3+ {[%clk 0:00:18]}  Kd6 {[%clk 0:00:06]} 63. Bc2 {[%clk 0:00:18]}  Rc4 {[%clk 0:00:05]} 64. Bf5 {[%clk 0:00:18]}  Rc3 {[%clk 0:00:02]} 65. Rxc3 {[%clk 0:00:13]}  Ne2+ {[%clk 0:00:03]} 66. Kg4 {[%clk 0:00:14]}  Nxc3 {[%clk 0:00:03]} 67. Bd3 {[%clk 0:00:14]}  Ke5 {[%clk 0:00:03]} 68. Bc2 {[%clk 0:00:14]}  Nd5 {[%clk 0:00:04]} 69. Kg3 {[%clk 0:00:13]}  Ne3 {[%clk 0:00:03]} 70. Bd3 {[%clk 0:00:12]}  f5 {[%clk 0:00:04]} 71. Kf3 {[%clk 0:00:13]}  Nd5 {[%clk 0:00:03]} 72. Bc4 {[%clk 0:00:12]}  Nf6 {[%clk 0:00:04]} 73. Bd3 {[%clk 0:00:12]}  g4+ {[%clk 0:00:04]} 74. Kg3 {[%clk 0:00:11]}  Ne4+ {[%clk 0:00:04]} 75. Kg2 {[%clk 0:00:09]}  Kf4 {[%clk 0:00:04]} 76. Be2 {[%clk 0:00:09]}  Nf6 {[%clk 0:00:04]} 77. Kf2 {[%clk 0:00:09]}  Kg5 {[%clk 0:00:05]} 78. Kg2 {[%clk 0:00:10]}  f4 {[%clk 0:00:05]} 79. Kf2 {[%clk 0:00:10]}  Ne4+ {[%clk 0:00:05]} 80. Kg2 {[%clk 0:00:11]}  Kf5 {[%clk 0:00:05]} 81. Bd1 {[%clk 0:00:08]}  Ng5 {[%clk 0:00:06]} 82. Bc2+ {[%clk 0:00:07]}  Ke5 {[%clk 0:00:06]} 83. Kf2 {[%clk 0:00:07]}  Ne4+ {[%clk 0:00:05]} 84. Kg2 {[%clk 0:00:06]}  Kd4 {[%clk 0:00:05]} 85. Bd1 {[%clk 0:00:06]}  Nf6 {[%clk 0:00:05]} 86. Bxg4 {[%clk 0:00:05]}  Nxg4 {[%clk 0:00:04]} 87. Kf3 {[%clk 0:00:05]}  Ke5 {[%clk 0:00:05]} 88. Kxg4 {[%clk 0:00:04]}  Ke4 {[%clk 0:00:05]} 89. Kh3 {[%clk 0:00:05]}  f3 {[%clk 0:00:06]} 90. Kg3 {[%clk 0:00:05]}  Ke3 {[%clk 0:00:06]} 91. Kh2 {[%clk 0:00:05]}  f2 {[%clk 0:00:06]} 92. Kg2 {[%clk 0:00:06]}  Ke2 {[%clk 0:00:07]} 93. Kh2 {[%clk 0:00:07]}  f1=Q {[%clk 0:00:07]} 0-1


[Site "https://www.chess.com"]

[Event "Titled Tuesday Blitz December 7 2021"]
[White "Matinian, Nikita"]
[Black "Baskin, Robert"]
[WhiteFideId "24129100"]
[BlackFideId "24662402"]
[WhiteElo "2422"]
[BlackElo "2488"]
[Result "1-0"]
[Round "07"]
[TimeControl "180+1"]
[Date "2021.12.07"]
[WhiteClock "0:01:14"]
[BlackClock "0:00:18"]

1. e4 {[%clk 0:03:00]}  e5 {[%clk 0:02:53]} 2. Nf3 {[%clk 0:03:00]}  Nc6 {[%clk 0:02:54]} 3. Bb5 {[%clk 0:03:01]}  a6 {[%clk 0:02:51]} 4. Ba4 {[%clk 0:03:01]}  Nf6 {[%clk 0:02:50]} 5. d3 {[%clk 0:03:00]}  b5 {[%clk 0:02:47]} 6. Bb3 {[%clk 0:03:00]}  Bc5 {[%clk 0:02:41]} 7. c3 {[%clk 0:03:00]}  d6 {[%clk 0:02:40]} 8. Bg5 {[%clk 0:02:59]}  h6 {[%clk 0:02:39]} 9. Bh4 {[%clk 0:03:00]}  Bb6 {[%clk 0:02:29]} 10. Nbd2 {[%clk 0:02:59]}  g5 {[%clk 0:02:12]} 11. Bg3 {[%clk 0:02:59]}  Nh5 {[%clk 0:02:11]} 12. Nxe5 {[%clk 0:02:57]}  Nxg3 {[%clk 0:01:59]} 13. Nxc6 {[%clk 0:02:53]}  Qf6 {[%clk 0:01:57]} 14. d4 {[%clk 0:02:16]}  Nxh1 {[%clk 0:01:52]} 15. Qe2 {[%clk 0:02:16]}  Bb7 {[%clk 0:01:45]} 16. Bd5 {[%clk 0:02:13]}  O-O {[%clk 0:01:34]} 17. f3 {[%clk 0:02:12]}  Rae8 {[%clk 0:01:24]} 18. O-O-O {[%clk 0:02:09]}  Bxc6 {[%clk 0:01:17]} 19. Bxc6 {[%clk 0:02:09]}  Re7 {[%clk 0:01:16]} 20. Rxh1 {[%clk 0:02:07]}  Qg6 {[%clk 0:01:10]} 21. g4 {[%clk 0:02:04]}  Qe6 {[%clk 0:01:02]} 22. Qd3 {[%clk 0:01:29]}  Qxa2 {[%clk 0:00:59]} 23. h4 {[%clk 0:01:29]}  f6 {[%clk 0:00:42]} 24. Bd5+ {[%clk 0:01:28]}  Qxd5 {[%clk 0:00:33]} 25. exd5 {[%clk 0:01:29]}  Kg7 {[%clk 0:00:33]} 26. h5 {[%clk 0:01:27]}  f5 {[%clk 0:00:30]} 27. gxf5 {[%clk 0:01:27]}  Ref7 {[%clk 0:00:26]} 28. Re1 {[%clk 0:01:19]}  Rxf5 {[%clk 0:00:21]} 29. Re6 {[%clk 0:01:19]}  R8f6 {[%clk 0:00:20]} 30. Rxf6 {[%clk 0:01:17]}  Rxf6 {[%clk 0:00:21]} 31. Ne4 {[%clk 0:01:17]}  Rf7 {[%clk 0:00:20]} 32. Nxd6 {[%clk 0:01:14]}  cxd6 {[%clk 0:00:18]} 33. Qg6+ {[%clk 0:01:14]} 1-0


[Site "https://www.chess.com"]

[Event "Titled Tuesday Blitz December 7 2021"]
[White "Mezentsev, Ivan"]
[Black "Weetik, Vjacheslav"]
[WhiteFideId "13706195"]
[BlackFideId "4153472"]
[WhiteElo "2295"]
[BlackElo "2469"]
[Result "1-0"]
[Round "07"]
[TimeControl "180+1"]
[Date "2021.12.07"]
[WhiteClock "0:00:09"]
[BlackClock "0:00:02"]

1. e4 {[%clk 0:03:00]}  c6 {[%clk 0:02:59]} 2. d4 {[%clk 0:03:00]}  d5 {[%clk 0:02:59]} 3. exd5 {[%clk 0:03:00]}  cxd5 {[%clk 0:03:00]} 4. Bd3 {[%clk 0:03:00]}  Nc6 {[%clk 0:03:00]} 5. c3 {[%clk 0:03:00]}  Qc7 {[%clk 0:02:59]} 6. h3 {[%clk 0:02:56]}  g6 {[%clk 0:02:53]} 7. Nf3 {[%clk 0:02:54]}  Bf5 {[%clk 0:02:53]} 8. Be2 {[%clk 0:02:52]}  Nf6 {[%clk 0:02:51]} 9. O-O {[%clk 0:02:51]}  Bg7 {[%clk 0:02:51]} 10. Nbd2 {[%clk 0:02:38]}  O-O {[%clk 0:02:49]} 11. Re1 {[%clk 0:02:37]}  Rab8 {[%clk 0:02:45]} 12. Nb3 {[%clk 0:02:32]}  Ne4 {[%clk 0:02:44]} 13. Be3 {[%clk 0:02:24]}  Rbd8 {[%clk 0:02:39]} 14. Qc1 {[%clk 0:02:22]}  f6 {[%clk 0:02:37]} 15. Nfd2 {[%clk 0:02:03]}  Nd6 {[%clk 0:02:35]} 16. Bf3 {[%clk 0:01:52]}  Be6 {[%clk 0:01:44]} 17. Nc5 {[%clk 0:01:23]}  Bf7 {[%clk 0:01:42]} 18. Nf1 {[%clk 0:01:06]}  e5 {[%clk 0:01:36]} 19. Bh6 {[%clk 0:00:49]}  e4 {[%clk 0:01:27]} 20. Be2 {[%clk 0:00:44]}  b6 {[%clk 0:01:22]} 21. Na6 {[%clk 0:00:39]}  Qe7 {[%clk 0:01:15]} 22. Bxg7 {[%clk 0:00:32]}  Kxg7 {[%clk 0:01:12]} 23. Ne3 {[%clk 0:00:29]}  f5 {[%clk 0:01:09]} 24. f4 {[%clk 0:00:29]}  Kh8 {[%clk 0:00:44]} 25. Rf1 {[%clk 0:00:23]}  Be6 {[%clk 0:00:43]} 26. a3 {[%clk 0:00:21]}  Na5 {[%clk 0:00:39]} 27. Qd1 {[%clk 0:00:18]}  Rg8 {[%clk 0:00:31]} 28. Nb4 {[%clk 0:00:17]}  Qf7 {[%clk 0:00:23]} 29. Kh1 {[%clk 0:00:14]}  Rg7 {[%clk 0:00:18]} 30. Qe1 {[%clk 0:00:13]}  Rdg8 {[%clk 0:00:14]} 31. Qh4 {[%clk 0:00:13]}  Nb3 {[%clk 0:00:15]} 32. Rad1 {[%clk 0:00:12]}  a5 {[%clk 0:00:15]} 33. Nc6 {[%clk 0:00:11]}  a4 {[%clk 0:00:11]} 34. Ne5 {[%clk 0:00:09]}  Qe7 {[%clk 0:00:11]} 35. Nxg6+ {[%clk 0:00:09]}  Rxg6 {[%clk 0:00:11]} 36. Qxe7 {[%clk 0:00:09]}  Bc8 {[%clk 0:00:06]} 37. Qh4 {[%clk 0:00:09]}  R8g7 {[%clk 0:00:04]} 38. g4 {[%clk 0:00:08]}  fxg4 {[%clk 0:00:03]} 39. f5 {[%clk 0:00:09]}  Rg5 {[%clk 0:00:02]} 40. f6 {[%clk 0:00:09]} 1-0


[Site "https://www.chess.com"]

[Event "Titled Tuesday Blitz December 7 2021"]
[White "Mikhailovsky, Vladimir"]
[Black "Nazari, Arad"]
[WhiteFideId "34105414"]
[BlackFideId "12577324"]
[WhiteElo "2409"]
[BlackElo "2119"]
[Result "0-1"]
[Round "07"]
[TimeControl "180+1"]
[Date "2021.12.07"]
[WhiteClock "0:00:05"]
[BlackClock "0:00:07"]

1. e4 {[%clk 0:03:00]}  c5 {[%clk 0:02:57]} 2. Nf3 {[%clk 0:02:57]}  d6 {[%clk 0:02:56]} 3. d4 {[%clk 0:02:56]}  cxd4 {[%clk 0:02:57]} 4. Qxd4 {[%clk 0:02:56]}  Nf6 {[%clk 0:02:54]} 5. Nc3 {[%clk 0:02:56]}  Nc6 {[%clk 0:02:54]} 6. Bb5 {[%clk 0:02:56]}  Bd7 {[%clk 0:02:51]} 7. Bxc6 {[%clk 0:02:56]}  Bxc6 {[%clk 0:02:52]} 8. Bg5 {[%clk 0:02:57]}  Qa5 {[%clk 0:02:43]} 9. O-O-O {[%clk 0:02:56]}  Rc8 {[%clk 0:02:30]} 10. Rhe1 {[%clk 0:02:55]}  h6 {[%clk 0:02:15]} 11. Bh4 {[%clk 0:02:51]}  g5 {[%clk 0:02:09]} 12. Bg3 {[%clk 0:02:45]}  Bg7 {[%clk 0:02:08]} 13. Qd2 {[%clk 0:02:27]}  Nd7 {[%clk 0:01:51]} 14. Nd4 {[%clk 0:02:22]}  Qc5 {[%clk 0:01:22]} 15. Qe3 {[%clk 0:01:35]}  O-O {[%clk 0:01:14]} 16. Nf5 {[%clk 0:01:09]}  Qxe3+ {[%clk 0:01:09]} 17. Rxe3 {[%clk 0:01:10]}  Rfe8 {[%clk 0:01:04]} 18. f3 {[%clk 0:01:09]}  Bf8 {[%clk 0:00:41]} 19. h4 {[%clk 0:01:09]}  Ne5 {[%clk 0:00:34]} 20. hxg5 {[%clk 0:01:06]}  hxg5 {[%clk 0:00:34]} 21. Rh1 {[%clk 0:00:56]}  e6 {[%clk 0:00:27]} 22. Nd4 {[%clk 0:00:56]}  Bg7 {[%clk 0:00:22]} 23. Ree1 {[%clk 0:00:39]}  a6 {[%clk 0:00:19]} 24. Rd1 {[%clk 0:00:40]}  Nc4 {[%clk 0:00:18]} 25. Bf2 {[%clk 0:00:27]}  Bd7 {[%clk 0:00:16]} 26. Nb3 {[%clk 0:00:22]}  Nxb2 {[%clk 0:00:15]} 27. Rxd6 {[%clk 0:00:21]}  Rxc3 {[%clk 0:00:12]} 28. Rxd7 {[%clk 0:00:19]}  Rec8 {[%clk 0:00:08]} 29. Bd4 {[%clk 0:00:06]}  Rxc2+ {[%clk 0:00:06]} 30. Kb1 {[%clk 0:00:07]}  Bxd4 {[%clk 0:00:05]} 31. Nxd4 {[%clk 0:00:08]}  Rxg2 {[%clk 0:00:04]} 32. Rc1 {[%clk 0:00:06]}  Rxc1+ {[%clk 0:00:03]} 33. Kxc1 {[%clk 0:00:07]}  Nd3+ {[%clk 0:00:04]} 34. Kd1 {[%clk 0:00:08]}  b5 {[%clk 0:00:04]} 35. Nc6 {[%clk 0:00:08]}  Nb2+ {[%clk 0:00:04]} 36. Ke1 {[%clk 0:00:08]}  Nc4 {[%clk 0:00:04]} 37. Nd8 {[%clk 0:00:06]}  Ne5 {[%clk 0:00:04]} 38. Ra7 {[%clk 0:00:07]}  Nxf3+ {[%clk 0:00:04]} 39. Kf1 {[%clk 0:00:07]}  Rxa2 {[%clk 0:00:03]} 40. Nxf7 {[%clk 0:00:08]}  Nd2+ {[%clk 0:00:03]} 41. Ke1 {[%clk 0:00:08]}  Nxe4 {[%clk 0:00:04]} 42. Nh6+ {[%clk 0:00:07]}  Kf8 {[%clk 0:00:05]} 43. Rf7+ {[%clk 0:00:07]}  Ke8 {[%clk 0:00:05]} 44. Rg7 {[%clk 0:00:07]}  Kd8 {[%clk 0:00:05]} 45. Nf7+ {[%clk 0:00:06]}  Kc8 {[%clk 0:00:06]} 46. Ne5 {[%clk 0:00:06]}  b4 {[%clk 0:00:06]} 47. Nc6 {[%clk 0:00:05]}  b3 {[%clk 0:00:07]} 48. Na7+ {[%clk 0:00:06]}  Kd8 {[%clk 0:00:07]} 49. Nc6+ {[%clk 0:00:06]}  Ke8 {[%clk 0:00:08]} 50. Re7+ {[%clk 0:00:07]}  Kf8 {[%clk 0:00:08]} 51. Rb7 {[%clk 0:00:07]}  Rb2 {[%clk 0:00:08]} 52. Nd4 {[%clk 0:00:06]}  Nc5 {[%clk 0:00:08]} 53. Rc7 {[%clk 0:00:05]}  Nd3+ {[%clk 0:00:08]} 54. Kd1 {[%clk 0:00:06]}  Nf2+ {[%clk 0:00:08]} 55. Ke1 {[%clk 0:00:06]}  Nd3+ {[%clk 0:00:08]} 56. Kd1 {[%clk 0:00:06]}  Rh2 {[%clk 0:00:07]} 57. Nxe6+ {[%clk 0:00:06]}  Ke8 {[%clk 0:00:08]} 58. Ng7+ {[%clk 0:00:04]}  Kf8 {[%clk 0:00:08]} 59. Ne6+ {[%clk 0:00:05]}  Kg8 {[%clk 0:00:08]} 60. Rc8+ {[%clk 0:00:05]}  Kf7 {[%clk 0:00:07]} 61. Nxg5+ {[%clk 0:00:06]}  Kg6 {[%clk 0:00:08]} 62. Rg8+ {[%clk 0:00:05]}  Kf5 {[%clk 0:00:06]} 63. Nf3 {[%clk 0:00:05]}  b2 {[%clk 0:00:05]} 64. Rb8 {[%clk 0:00:04]}  Rh1+ {[%clk 0:00:06]} 65. Kc2 {[%clk 0:00:04]}  Rc1+ {[%clk 0:00:04]} 66. Kxd3 {[%clk 0:00:04]}  b1=Q+ {[%clk 0:00:05]} 67. Rxb1 {[%clk 0:00:05]}  Rxb1 {[%clk 0:00:05]} 68. Nd4+ {[%clk 0:00:05]}  Kf6 {[%clk 0:00:06]} 69. Kc2 {[%clk 0:00:06]}  Rb8 {[%clk 0:00:06]} 70. Kc3 {[%clk 0:00:06]}  a5 {[%clk 0:00:06]} 71. Nb3 {[%clk 0:00:04]}  a4 {[%clk 0:00:06]} 72. Nd4 {[%clk 0:00:01]}  a3 {[%clk 0:00:06]} 73. Nc2 {[%clk 0:00:02]}  a2 {[%clk 0:00:06]} 74. Na1 {[%clk 0:00:03]}  Ke5 {[%clk 0:00:06]} 75. Nb3 {[%clk 0:00:04]}  Rxb3+ {[%clk 0:00:06]} 76. Kxb3 {[%clk 0:00:05]}  a1=Q {[%clk 0:00:07]} 0-1


[Site "https://www.chess.com"]

[Event "Titled Tuesday Blitz December 7 2021"]
[White "Mouhamad, Joachim"]
[Black "Barria Zuniga, Daniel"]
[WhiteFideId "656410"]
[BlackFideId "3400816"]
[WhiteElo "2207"]
[BlackElo "2414"]
[Result "0-1"]
[Round "07"]
[TimeControl "180+1"]
[Date "2021.12.07"]
[WhiteClock "0:00:05"]
[BlackClock "0:00:21"]

1. e4 {[%clk 0:03:00]}  g6 {[%clk 0:02:51]} 2. d4 {[%clk 0:03:00]}  Bg7 {[%clk 0:02:51]} 3. Nc3 {[%clk 0:03:00]}  c5 {[%clk 0:02:52]} 4. dxc5 {[%clk 0:02:56]}  Bxc3+ {[%clk 0:02:51]} 5. bxc3 {[%clk 0:02:56]}  Nf6 {[%clk 0:02:51]} 6. Bd3 {[%clk 0:02:47]}  Qa5 {[%clk 0:02:50]} 7. Bd2 {[%clk 0:02:42]}  Qxc5 {[%clk 0:02:50]} 8. Nf3 {[%clk 0:02:42]}  O-O {[%clk 0:02:49]} 9. e5 {[%clk 0:02:24]}  Ng4 {[%clk 0:02:47]} 10. Qe2 {[%clk 0:02:24]}  Nc6 {[%clk 0:02:47]} 11. O-O {[%clk 0:02:16]}  Ngxe5 {[%clk 0:02:44]} 12. Nxe5 {[%clk 0:02:15]}  Nxe5 {[%clk 0:02:33]} 13. c4 {[%clk 0:02:08]}  d6 {[%clk 0:02:19]} 14. h3 {[%clk 0:02:07]}  Be6 {[%clk 0:02:18]} 15. Be3 {[%clk 0:02:05]}  Qc6 {[%clk 0:02:17]} 16. Rab1 {[%clk 0:01:44]}  b6 {[%clk 0:02:15]} 17. Kh1 {[%clk 0:01:42]}  Bxc4 {[%clk 0:02:13]} 18. f4 {[%clk 0:01:37]}  Nxd3 {[%clk 0:02:06]} 19. cxd3 {[%clk 0:01:38]}  Be6 {[%clk 0:01:55]} 20. f5 {[%clk 0:01:11]}  Bxf5 {[%clk 0:01:55]} 21. Rxf5 {[%clk 0:01:10]}  gxf5 {[%clk 0:01:56]} 22. Bh6 {[%clk 0:01:04]}  e5 {[%clk 0:01:42]} 23. Qf2 {[%clk 0:00:55]}  d5 {[%clk 0:01:38]} 24. Bxf8 {[%clk 0:00:50]}  Rxf8 {[%clk 0:01:37]} 25. Qxf5 {[%clk 0:00:50]}  Re8 {[%clk 0:01:27]} 26. Rf1 {[%clk 0:00:48]}  Qe6 {[%clk 0:01:25]} 27. Qg5+ {[%clk 0:00:34]}  Qg6 {[%clk 0:01:25]} 28. Qe3 {[%clk 0:00:32]}  d4 {[%clk 0:01:20]} 29. Qd2 {[%clk 0:00:27]}  e4 {[%clk 0:01:19]} 30. dxe4 {[%clk 0:00:28]}  Rxe4 {[%clk 0:01:14]} 31. Kh2 {[%clk 0:00:26]}  h5 {[%clk 0:01:14]} 32. Rf3 {[%clk 0:00:22]}  h4 {[%clk 0:01:13]} 33. Rd3 {[%clk 0:00:23]}  Qd6+ {[%clk 0:01:11]} 34. Kg1 {[%clk 0:00:21]}  Qe5 {[%clk 0:01:12]} 35. Kf2 {[%clk 0:00:18]}  Qf4+ {[%clk 0:01:01]} 36. Qxf4 {[%clk 0:00:16]}  Rxf4+ {[%clk 0:01:02]} 37. Ke2 {[%clk 0:00:16]}  Kg7 {[%clk 0:00:57]} 38. Ra3 {[%clk 0:00:16]}  a5 {[%clk 0:00:55]} 39. Rb3 {[%clk 0:00:17]}  Rf6 {[%clk 0:00:55]} 40. Rb5 {[%clk 0:00:17]}  Rg6 {[%clk 0:00:53]} 41. Kf3 {[%clk 0:00:17]}  Rg3+ {[%clk 0:00:25]} 42. Kf2 {[%clk 0:00:16]}  Ra3 {[%clk 0:00:26]} 43. Rxb6 {[%clk 0:00:16]}  Rxa2+ {[%clk 0:00:26]} 44. Kf3 {[%clk 0:00:16]}  a4 {[%clk 0:00:26]} 45. Rb4 {[%clk 0:00:15]}  d3 {[%clk 0:00:24]} 46. Rd4 {[%clk 0:00:16]}  d2 {[%clk 0:00:24]} 47. Ke2 {[%clk 0:00:16]}  a3 {[%clk 0:00:24]} 48. Kd1 {[%clk 0:00:15]}  Rb2 {[%clk 0:00:23]} 49. Ra4 {[%clk 0:00:15]}  a2 {[%clk 0:00:23]} 50. Ke2 {[%clk 0:00:05]}  d1=Q+ {[%clk 0:00:21]} 51. Kxd1 {[%clk 0:00:05]}  Rb1+ {[%clk 0:00:21]} 0-1


[Site "https://www.chess.com"]